fUST/lending_fUST_20251102
["ID","MTS","AMOUNT","RATE_DAILY","PERIOD"]
[392854936,1762063218172,217.15233878,0.00037891,120]
[392854937,1762063218784,225.18697532,0.00037891,120]
[392854938,1762063219448,233.51889341,0.00037891,120]
[392854939,1762063220061,242.15909246,0.00037891,120]
[392854940,1762063220692,251.11897888,0.00037891,120]
[392854941,1762063221376,260.4103811,0.00037891,120]
[392854942,1762063221961,270.0455652,0.00037891,120]
[392854943,1762063222604,280.03725112,0.00037891,120]
[392854944,1762063223348,290.39862941,0.00037891,120]
[392854945,1762063223887,290.39862941,0.00037891,120]
[392854946,1762063232570,3368.38813856,0.00037891,120]
[392854947,1762063236077,200.0,0.00029,120]
[392854948,1762063269563,200.0,0.00029,120]
[392854950,1762063306658,200.0,0.00029,120]
[392854951,1762063340949,200.0,0.00029,120]
[392854952,1762063350961,200.0,0.00029,120]
[392854953,1762063380148,244.665,0.00029,120]
[392854957,1762063489905,1045.63711529,0.00022842,2]
[392854958,1762063489928,1762.33983771,0.00022842,2]
[392854959,1762063514174,151.0,0.00037892,120]
[392854960,1762063514806,156.587,0.00037892,120]
[392854961,1762063515483,162.380719,0.00037892,120]
[392854962,1762063516100,168.3888056,0.00037892,120]
[392854963,1762063516722,174.61919141,0.00037892,120]
[392854964,1762063517362,181.08010149,0.00037892,120]
[392854965,1762063517988,187.78006525,0.00037892,120]
[392854966,1762063518649,194.72792766,0.00037892,120]
[392854967,1762063519280,201.93286099,0.00037892,120]
[392854969,1762063519909,209.40437684,0.00037892,120]
[392854972,1762063520535,217.15233878,0.00037892,120]
[392854973,1762063521144,225.18697532,0.00037892,120]
[392854974,1762063521759,233.51889341,0.00037892,120]
[392854975,1762063522426,242.15909246,0.00037892,120]
[392854976,1762063523005,251.11897888,0.00037892,120]
[392854977,1762063523615,260.4103811,0.00037892,120]
[392854978,1762063524232,270.0455652,0.00037892,120]
[392854979,1762063524842,280.03725112,0.00037892,120]
[392854980,1762063525490,290.39862941,0.00037892,120]
[392854981,1762063526105,290.39862941,0.00037892,120]
[392854984,1762063700080,10081.953399,0.00037892,120]
[392854986,1762063707008,364.304457,0.00013699,2]
[392854987,1762063707217,364.304457,0.00020187,2]
[392854988,1762063725886,177.70527042,0.00023359,2]
[392854991,1762063808479,151.0,0.00037892,120]
[392854992,1762063809290,156.587,0.00037892,120]
[392854993,1762063809937,162.380719,0.00037892,120]
[392854994,1762063810601,168.3888056,0.00037892,120]
[392854995,1762063811256,174.61919141,0.00037892,120]
[392854996,1762063811881,181.08010149,0.00037892,120]
[392854997,1762063812538,187.78006525,0.00037892,120]
[392854998,1762063813198,194.72792766,0.00037892,120]
[392854999,1762063813854,201.93286099,0.00037892,120]
[392855000,1762063814472,209.40437684,0.00037892,120]
[392855001,1762063815112,217.15233878,0.00037892,120]
[392855002,1762063815721,225.18697532,0.00037892,120]
[392855003,1762063816393,233.51889341,0.00037892,120]
[392855004,1762063816994,242.15909246,0.00037892,120]
[392855005,1762063817614,251.11897888,0.00037892,120]
[392855006,1762063818221,260.4103811,0.00037892,120]
[392855007,1762063818850,270.0455652,0.00037892,120]
[392855008,1762063819982,280.03725112,0.00037892,120]
[392855009,1762063820647,290.39862941,0.00037892,120]
[392855010,1762063821265,290.39862941,0.00037892,120]
[392855040,1762063831836,-212.39002255,0.00023464,4]
[392855041,1762063831846,-150.0,0.00023488,2]
[392855042,1762063831855,-1040.30792503,0.00023559,2]
[392855043,1762063831864,-160.0,0.00023564,2]
[392855044,1762063831874,-401.0,0.00023564,2]
[392855045,1762063831883,-300.0,0.00023658,2]
[392855046,1762063831892,-34973.69760153,0.00023659,2]
[392855047,1762063831901,-500.0,0.00023659,2]
[392855048,1762063831910,-355.04205242,0.00023659,2]
[392855049,1762063831921,-144.95794758,0.00023659,2]
[392855050,1762063831930,-338.23756258,0.00023659,2]
[392855127,1762063837801,-500.0,0.00023658,2]
[392855129,1762063837810,-500.0,0.00023658,2]
[392855131,1762063837820,-351.67857022,0.00023658,2]
[392855133,1762063837829,-500.0,0.00023658,2]
[392855135,1762063837839,-500.0,0.00023658,2]
[392855137,1762063837849,-500.0,0.00023658,2]
[392855139,1762063837858,-626.83407205,0.00023658,2]
[392855141,1762063837867,-500.0,0.00023658,2]
[392855143,1762063837876,-512.93618858,0.00023658,2]
[392855145,1762063837886,-500.0,0.00023658,2]
[392855147,1762063837895,-500.0,0.00023658,2]
[392855149,1762063837903,-500.0,0.00023658,2]
[392855151,1762063837912,-500.0,0.00023658,2]
[392855153,1762063837922,-500.0,0.00023658,2]
[392855155,1762063837931,-500.0,0.00023658,2]
[392855165,1762063838012,-500.0,0.00023658,2]
[392855168,1762063838046,-500.0,0.00023658,2]
[392855170,1762063838055,-500.0,0.00023658,2]
[392855172,1762063838065,-500.0,0.00023658,2]
[392855174,1762063838074,-500.0,0.00023658,2]
[392855176,1762063838083,-500.0,0.00023658,2]
[392855178,1762063838092,-500.0,0.00023658,2]
[392855180,1762063838102,-500.0,0.00023658,2]
[392855182,1762063838115,-500.0,0.00023658,2]
[392855184,1762063838125,-500.0,0.00023658,2]
[392855186,1762063838136,-500.0,0.00023658,2]
[392855188,1762063838146,-500.0,0.00023658,2]
[392855189,1762063838156,-500.0,0.00023658,2]
[392855190,1762063838166,-500.0,0.00023658,2]
[392855191,1762063838175,-500.0,0.00023658,2]
[392855192,1762063838185,-500.0,0.00023658,2]
[392855193,1762063838195,-500.0,0.00023658,2]
[392855194,1762063838204,-500.0,0.00023658,2]
[392855195,1762063838215,-500.0,0.00023658,2]
[392855196,1762063838225,-500.0,0.00023658,2]
[392855197,1762063838234,-500.0,0.00023658,2]
[392855198,1762063838245,-500.0,0.00023658,2]
[392855199,1762063838255,-500.0,0.00023658,2]
[392855200,1762063838266,-415.01984618,0.00023658,2]
[392855201,1762063838276,-302.520935,0.00023658,2]
[392855202,1762063838289,-197.479065,0.00023658,2]
[392855203,1762063838300,-500.0,0.00023658,2]
[392855204,1762063838310,-500.0,0.00023658,2]
[392855205,1762063838320,-500.0,0.00023658,2]
[392855206,1762063838330,-500.0,0.00023658,2]
[392855207,1762063838340,-500.0,0.00023658,2]
[392855208,1762063838350,-521.86905656,0.00023658,2]
[392855209,1762063838360,-500.0,0.00023658,2]
[392855210,1762063838370,-500.0,0.00023658,2]
[392855211,1762063838380,-500.0,0.00023658,2]
[392855212,1762063838390,-500.0,0.00023658,2]
[392855213,1762063838400,-500.0,0.00023658,2]
[392855214,1762063838409,-500.0,0.00023658,2]
[392855215,1762063838419,-500.0,0.00023658,2]
[392855216,1762063838429,-500.0,0.00023658,2]
[392855217,1762063838439,-500.0,0.00023658,2]
[392855218,1762063838449,-500.0,0.00023658,2]
[392855219,1762063838459,-500.0,0.00023658,2]
[392855220,1762063838468,-1200.0,0.00023659,2]
[392855221,1762063838478,-500.0,0.00023662,2]
[392855222,1762063838487,-500.0,0.00023662,2]
[392855223,1762063838497,-500.0,0.00024789,2]
[392855224,1762063838507,-500.0,0.00024789,2]
[392855225,1762063838516,-276.84313728,0.00024789,2]
[392855226,1762063838526,-500.0,0.00024789,2]
[392855227,1762063838538,-500.0,0.00024789,2]
[392855228,1762063838547,-500.0,0.00024789,2]
[392855229,1762063838556,-500.0,0.00024789,2]
[392855230,1762063838566,-500.0,0.00024789,2]
[392855231,1762063838575,-500.0,0.00024789,2]
[392855232,1762063838585,-500.0,0.00024789,2]
[392855233,1762063838595,-500.0,0.00024789,2]
[392855234,1762063838604,-201.14324022,0.00024789,2]
[392855239,1762063839882,-500.0,0.00023658,2]
[392855240,1762063839892,-298.85675978,0.00024789,2]
[392855241,1762063839901,-500.0,0.00024789,2]
[392855242,1762063839910,-500.0,0.00024789,2]
[392855243,1762063839919,-620.32599422,0.00024789,2]
[392855244,1762063839928,-7995.2219795,0.0002479,2]
[392855245,1762063839938,-393.94,0.00024843,10]
[392855246,1762063839948,-11290.5559345,0.00024853,2]
[392855321,1762063860748,150.0,0.00021481,2]
[392855322,1762063861160,150.0,0.00022504,2]
[392855330,1762064109068,151.0,0.00037888,120]
[392855331,1762064109701,156.587,0.00037888,120]
[392855332,1762064110334,162.380719,0.00037888,120]
[392855333,1762064110973,168.3888056,0.00037888,120]
[392855334,1762064111624,174.61919141,0.00037888,120]
[392855335,1762064112337,181.08010149,0.00037888,120]
[392855336,1762064112988,187.78006525,0.00037888,120]
[392855337,1762064113633,194.72792766,0.00037888,120]
[392855338,1762064114227,201.93286099,0.00037888,120]
[392855339,1762064114838,209.40437684,0.00037888,120]
[392855340,1762064115472,217.15233878,0.00037888,120]
[392855341,1762064116083,225.18697532,0.00037888,120]
[392855342,1762064116684,233.51889341,0.00037888,120]
[392855343,1762064117305,242.15909246,0.00037888,120]
[392855344,1762064117912,251.11897888,0.00037888,120]
[392855345,1762064118847,260.4103811,0.00037888,120]
[392855346,1762064119480,270.0455652,0.00037888,120]
[392855347,1762064120606,280.03725112,0.00037888,120]
[392855348,1762064121297,290.39862941,0.00037888,120]
[392855349,1762064121914,290.39862941,0.00037888,120]
[392855354,1762064412138,151.0,0.00037888,120]
[392855355,1762064412798,156.587,0.00037888,120]
[392855356,1762064413544,162.380719,0.00037888,120]
[392855357,1762064414209,168.3888056,0.00037888,120]
[392855358,1762064414821,174.61919141,0.00037888,120]
[392855359,1762064415437,181.08010149,0.00037888,120]
[392855360,1762064416062,187.78006525,0.00037888,120]
[392855361,1762064416689,194.72792766,0.00037888,120]
[392855362,1762064417334,201.93286099,0.00037888,120]
[392855363,1762064417987,209.40437684,0.00037888,120]
[392855364,1762064418604,217.15233878,0.00037888,120]
[392855365,1762064419215,225.18697532,0.00037888,120]
[392855366,1762064419863,233.51889341,0.00037888,120]
[392855367,1762064420471,242.15909246,0.00037888,120]
[392855368,1762064421084,251.11897888,0.00037888,120]
[392855369,1762064421721,260.4103811,0.00037888,120]
[392855370,1762064422403,270.0455652,0.00037888,120]
[392855371,1762064423012,280.03725112,0.00037888,120]
[392855372,1762064423659,290.39862941,0.00037888,120]
[392855373,1762064424279,290.39862941,0.00037888,120]
[392855392,1762064563321,1000.0,0.00023251,30]
[392855396,1762064712694,151.0,0.00037888,120]
[392855397,1762064713377,156.587,0.00037888,120]
[392855398,1762064714069,162.380719,0.00037888,120]
[392855399,1762064714726,168.3888056,0.00037888,120]
[392855400,1762064715401,174.61919141,0.00037888,120]
[392855401,1762064715949,181.08010149,0.00037888,120]
[392855402,1762064716574,187.78006525,0.00037888,120]
[392855403,1762064716823,192.38090858,0.00022531,3]
[392855404,1762064717531,194.72792766,0.00037888,120]
[392855405,1762064718160,201.93286099,0.00037888,120]
[392855406,1762064718798,209.40437684,0.00037888,120]
[392855407,1762064719500,217.15233878,0.00037888,120]
[392855408,1762064720135,225.18697532,0.00037888,120]
[392855409,1762064720757,233.51889341,0.00037888,120]
[392855410,1762064721387,242.15909246,0.00037888,120]
[392855411,1762064722007,251.11897888,0.00037888,120]
[392855412,1762064722604,260.4103811,0.00037888,120]
[392855413,1762064723253,270.0455652,0.00037888,120]
[392855414,1762064723882,280.03725112,0.00037888,120]
[392855415,1762064724493,290.39862941,0.00037888,120]
[392855416,1762064725148,290.39862941,0.00037888,120]
[392855423,1762064885700,4488.84404236,0.00021,5]
[392855424,1762064888565,2350.13102693,0.000125,2]
[392855425,1762064888591,9211.8293902,0.000125,2]
[392855426,1762064896982,788.1806098,0.000176,2]
[392855427,1762064897005,1330.46897012,0.000176,2]
[392855428,1762064906139,7881.8680827,0.00017,2]
[392855429,1762064906408,787.67294718,0.00022,5]
[392855430,1762064906433,10000.01,0.00022,5]
[392855431,1762064906458,10000.01,0.00022,5]
[392855432,1762064906482,5152.30315316,0.00022,5]
[392855433,1762064950648,1000.0,0.00037888,60]
[392855434,1762064951879,1000.0,0.00037888,60]
[392855435,1762064953216,1000.0,0.00037888,60]
[392855436,1762064959903,1033.93,0.00037888,60]
[392855438,1762065011323,151.0,0.00037888,120]
[392855439,1762065011977,156.587,0.00037888,120]
[392855440,1762065012612,162.380719,0.00037888,120]
[392855441,1762065013397,168.3888056,0.00037888,120]
[392855442,1762065014046,174.61919141,0.00037888,120]
[392855443,1762065014666,181.08010149,0.00037888,120]
[392855444,1762065015282,187.78006525,0.00037888,120]
[392855445,1762065015885,194.72792766,0.00037888,120]
[392855446,1762065016634,201.93286099,0.00037888,120]
[392855447,1762065017242,209.40437684,0.00037888,120]
[392855448,1762065017852,217.15233878,0.00037888,120]
[392855449,1762065018537,225.18697532,0.00037888,120]
[392855450,1762065019168,233.51889341,0.00037888,120]
[392855451,1762065019807,242.15909246,0.00037888,120]
[392855452,1762065020485,251.11897888,0.00037888,120]
[392855453,1762065021091,260.4103811,0.00037888,120]
[392855454,1762065021720,270.0455652,0.00037888,120]
[392855455,1762065022332,280.03725112,0.00037888,120]
[392855456,1762065022683,-196.41355444,0.00023151,2]
[392855457,1762065022987,290.39862941,0.00037888,120]
[392855459,1762065023648,290.39862941,0.00037888,120]
[392855460,1762065025245,-152.08678166,0.00023151,2]
[392855510,1762065031999,-151.4996639,0.00023151,2]
[392855512,1762065032008,-555.14858972,0.00023251,2]
[392855559,1762065121692,937.81559832,0.00023,2]
[392855560,1762065127684,-254.87088445,0.00023251,2]
[392855565,1762065144470,254.87088445,0.00023251,2]
[392855571,1762065200447,500.0,0.00023151,2]
[392855574,1762065232640,-134.12911555,0.00023251,2]
[392855575,1762065232661,-261.57060682,0.00023486,2]
[392855576,1762065234808,-430.27624908,0.00023486,2]
[392855577,1762065234894,41.86042157,0.00023368,2]
[392855578,1762065276062,3494.0,0.00023,2]
[392855579,1762065276164,-108.13957843,0.00023368,2]
[392855580,1762065291283,-205.95598222,0.00023558,2]
[392855581,1762065292762,5000.0,0.000233,2]
[392855585,1762065306846,151.0,0.00037888,120]
[392855586,1762065307497,156.587,0.00037888,120]
[392855587,1762065308225,162.380719,0.00037888,120]
[392855588,1762065308855,168.3888056,0.00037888,120]
[392855589,1762065309490,174.61919141,0.00037888,120]
[392855590,1762065310143,181.08010149,0.00037888,120]
[392855591,1762065310835,187.78006525,0.00037888,120]
[392855592,1762065311507,194.72792766,0.00037888,120]
[392855593,1762065312259,201.93286099,0.00037888,120]
[392855594,1762065312891,209.40437684,0.00037888,120]
[392855595,1762065313531,217.15233878,0.00037888,120]
[392855596,1762065314193,225.18697532,0.00037888,120]
[392855611,1762065314850,233.51889341,0.00037888,120]
[392855631,1762065315500,242.15909246,0.00037888,120]
[392855659,1762065316163,251.11897888,0.00037888,120]
[392855685,1762065316798,260.4103811,0.00037888,120]
[392855705,1762065317435,270.0455652,0.00037888,120]
[392855727,1762065318131,280.03725112,0.00037888,120]
[392855733,1762065318743,290.39862941,0.00037888,120]
[392855744,1762065319367,290.39862941,0.00037888,120]
[392855765,1762065324559,274.60364996,0.00023659,2]
[392855766,1762065326737,313.51891007,0.00023659,2]
[392855814,1762065614550,151.0,0.00037891,120]
[392855815,1762065615168,156.587,0.00037891,120]
[392855816,1762065615817,162.380719,0.00037891,120]
[392855817,1762065616443,168.3888056,0.00037891,120]
[392855818,1762065617065,174.61919141,0.00037891,120]
[392855819,1762065617766,181.08010149,0.00037891,120]
[392855820,1762065618425,187.78006525,0.00037891,120]
[392855821,1762065619092,194.72792766,0.00037891,120]
[392855822,1762065619716,201.93286099,0.00037891,120]
[392855823,1762065620337,209.40437684,0.00037891,120]
[392855824,1762065621177,217.15233878,0.00037891,120]
[392855825,1762065621790,225.18697532,0.00037891,120]
[392855826,1762065622410,233.51889341,0.00037891,120]
[392855827,1762065623030,242.15909246,0.00037891,120]
[392855834,1762065623701,251.11897888,0.00037891,120]
[392855839,1762065624310,260.4103811,0.00037891,120]
[392855840,1762065624927,270.0455652,0.00037891,120]
[392855841,1762065625591,280.03725112,0.00037891,120]
[392855842,1762065626225,290.39862941,0.00037891,120]
[392855843,1762065626882,290.39862941,0.00037891,120]
[392855922,1762065737793,1070.34986649,0.00023161,2]
[392855923,1762065738090,1070.34986649,0.00023517,2]
[392855975,1762065911551,151.0,0.0003789,120]
[392855976,1762065912202,156.587,0.0003789,120]
[392855977,1762065912817,162.380719,0.0003789,120]
[392855978,1762065913492,168.3888056,0.0003789,120]
[392855979,1762065914112,174.61919141,0.0003789,120]
[392855980,1762065914724,181.08010149,0.0003789,120]
[392855981,1762065915347,187.78006525,0.0003789,120]
[392855982,1762065915946,194.72792766,0.0003789,120]
[392855983,1762065916576,201.93286099,0.0003789,120]
[392855984,1762065917226,209.40437684,0.0003789,120]
[392855985,1762065917851,217.15233878,0.0003789,120]
[392855986,1762065918483,225.18697532,0.0003789,120]
[392855987,1762065919101,233.51889341,0.0003789,120]
[392855988,1762065919774,242.15909246,0.0003789,120]
[392855989,1762065920396,251.11897888,0.0003789,120]
[392855990,1762065921064,260.4103811,0.0003789,120]
[392855991,1762065921685,270.0455652,0.0003789,120]
[392855992,1762065922347,280.03725112,0.0003789,120]
[392855993,1762065923025,290.39862941,0.0003789,120]
[392855994,1762065923779,290.39862941,0.0003789,120]
[392855999,1762066117539,4043.0,0.00023756,2]
[392856000,1762066168301,413.8935062,0.00023114,2]
[392856003,1762066209056,151.0,0.0003789,120]
[392856004,1762066209690,156.587,0.0003789,120]
[392856005,1762066210458,162.380719,0.0003789,120]
[392856006,1762066211188,168.3888056,0.0003789,120]
[392856007,1762066211829,174.61919141,0.0003789,120]
[392856008,1762066212503,181.08010149,0.0003789,120]
[392856009,1762066213169,187.78006525,0.0003789,120]
[392856010,1762066213813,194.72792766,0.0003789,120]
[392856011,1762066214455,201.93286099,0.0003789,120]
[392856012,1762066215086,209.40437684,0.0003789,120]
[392856013,1762066215705,217.15233878,0.0003789,120]
[392856014,1762066216334,225.18697532,0.0003789,120]
[392856015,1762066217011,233.51889341,0.0003789,120]
[392856016,1762066217638,242.15909246,0.0003789,120]
[392856017,1762066218312,251.11897888,0.0003789,120]
[392856018,1762066218891,260.4103811,0.0003789,120]
[392856019,1762066219617,270.0455652,0.0003789,120]
[392856020,1762066220192,280.03725112,0.0003789,120]
[392856021,1762066220830,290.39862941,0.0003789,120]
[392856022,1762066221443,290.39862941,0.0003789,120]
[392856049,1762066240331,-233.00692326,0.00023786,2]
[392856050,1762066240340,-150.0,0.00023798,2]
[392856051,1762066240350,-346.106932,0.00023886,2]
[392856052,1762066240359,-207.00155326,0.00023922,2]
[392856053,1762066240368,-1246.06552472,0.0002399,2]
[392856074,1762066243574,-3450.90417099,0.0002399,2]
[392856075,1762066243584,-300.0,0.00024196,2]
[392856076,1762066243593,-1200.0,0.00024196,2]
[392856077,1762066243603,-500.0,0.00024197,2]
[392856078,1762066243613,-154.12284533,0.00024197,2]
[392856079,1762066243622,-500.0,0.00024197,2]
[392856080,1762066243632,-500.0,0.00024197,2]
[392856081,1762066243641,-500.0,0.00024197,2]
[392856082,1762066243650,-500.0,0.00024197,2]
[392856083,1762066243659,-500.0,0.00024197,2]
[392856084,1762066243669,-500.0,0.00024197,2]
[392856085,1762066243678,-514.80905629,0.00024197,2]
[392856086,1762066243690,-500.0,0.00024197,2]
[392856087,1762066243711,-500.0,0.00024197,2]
[392856088,1762066243731,-500.0,0.00024197,2]
[392856089,1762066243741,-500.0,0.00024197,2]
[392856090,1762066243751,-500.0,0.00024197,2]
[392856091,1762066243761,-500.0,0.00024197,2]
[392856092,1762066243770,-500.0,0.00024197,2]
[392856094,1762066243779,-500.0,0.00024197,2]
[392856096,1762066243788,-500.0,0.00024197,2]
[392856098,1762066243798,-500.0,0.00024197,2]
[392856100,1762066243807,-500.0,0.00024197,2]
[392856103,1762066243816,-500.0,0.00024197,2]
[392856105,1762066243826,-500.0,0.00024197,2]
[392856107,1762066243835,-500.0,0.00024197,2]
[392856108,1762066243844,-500.0,0.00024197,2]
[392856109,1762066243853,-258.64119105,0.00024197,2]
[392856110,1762066243863,-500.0,0.00024197,2]
[392856111,1762066243872,-500.0,0.00024197,2]
[392856112,1762066243882,-500.0,0.00024197,2]
[392856113,1762066243891,-500.0,0.00024197,2]
[392856114,1762066243900,-607.21890196,0.00024197,2]
[392856115,1762066243909,-500.0,0.00024197,2]
[392856116,1762066243918,-500.0,0.00024197,2]
[392856117,1762066243928,-500.0,0.00024197,2]
[392856118,1762066243937,-500.0,0.00024197,2]
[392856119,1762066243946,-500.0,0.00024197,2]
[392856120,1762066243955,-500.0,0.00024197,2]
[392856121,1762066243964,-500.0,0.00024197,2]
[392856122,1762066243974,-500.0,0.00024197,2]
[392856123,1762066243983,-500.0,0.00024197,2]
[392856124,1762066243992,-500.0,0.00024197,2]
[392856125,1762066244001,-500.0,0.00024197,2]
[392856126,1762066244010,-500.0,0.00024197,2]
[392856127,1762066244019,-500.0,0.00024197,2]
[392856128,1762066244029,-500.0,0.00024197,2]
[392856129,1762066244038,-500.0,0.00024197,2]
[392856130,1762066244047,-500.0,0.00024197,2]
[392856131,1762066244056,-500.0,0.00024197,2]
[392856132,1762066244065,-300.0,0.00024197,2]
[392856133,1762066244074,-300.0,0.00024197,2]
[392856134,1762066244083,-300.0,0.00024197,2]
[392856135,1762066244092,-300.0,0.00024197,2]
[392856136,1762066244102,-500.0,0.00024198,2]
[392856137,1762066244111,-193.7901961,0.00024198,2]
[392856138,1762066244120,-500.0,0.00024198,2]
[392856139,1762066244129,-500.0,0.00024198,2]
[392856140,1762066244138,-500.0,0.00024198,2]
[392856141,1762066244148,-500.0,0.00024198,2]
[392856142,1762066244157,-500.0,0.00024198,2]
[392856143,1762066244167,-500.0,0.00024198,2]
[392856144,1762066244176,-500.0,0.00024198,2]
[392856145,1762066244185,-500.0,0.00024198,2]
[392856146,1762066244194,-311.00500751,0.00024198,2]
[392856147,1762066244203,-500.0,0.00024198,2]
[392856148,1762066244212,-500.0,0.00024198,2]
[392856149,1762066244222,-500.0,0.00024198,2]
[392856150,1762066244231,-500.0,0.00024198,2]
[392856151,1762066244241,-500.0,0.00024198,2]
[392856152,1762066244252,-500.0,0.00024198,2]
[392856153,1762066244262,-500.0,0.00024198,2]
[392856154,1762066244271,-374.84061226,0.00024198,2]
[392856156,1762066246378,-125.15938774,0.00024198,2]
[392856157,1762066246388,-1200.0,0.00024198,2]
[392856158,1762066246397,-16222.15964272,0.00024199,2]
[392856159,1762066246406,-850.10404778,0.000242,2]
[392856160,1762066246416,-9725.77040611,0.000242,2]
[392856161,1762066246425,-334.95,0.00024283,3]
[392856162,1762066246434,-167.48,0.00024283,3]
[392856163,1762066246443,-502.45,0.00024283,3]
[392856164,1762066246452,-545.97,0.00024283,10]
[392856165,1762066246462,-204.721,0.00024283,6]
[392856166,1762066246472,-548906.99844659,0.00024293,2]
[392856175,1762066257102,3636.77198582,0.00023756,2]
[392856176,1762066264889,5000.0,0.00023756,2]
[392856177,1762066299423,485.038,0.00024853,30]
[392856182,1762066379203,770.8767504,0.00023197,2]
[392856183,1762066381591,999.0,0.00032876,120]
[392856187,1762066428217,150.0,0.00020902,2]
[392856188,1762066428603,150.0,0.00021897,2]
[392856189,1762066429024,150.0,0.00022892,2]
[392856193,1762066493862,142.36126378,0.00020749,2]
[392856194,1762066493888,7.63873622,0.00020749,2]
[392856197,1762066508889,151.0,0.00037892,120]
[392856198,1762066509582,156.587,0.00037892,120]
[392856199,1762066510175,162.380719,0.00037892,120]
[392856200,1762066510817,168.3888056,0.00037892,120]
[392856201,1762066511465,174.61919141,0.00037892,120]
[392856202,1762066511899,300.65,0.00037892,60]
[392856203,1762066512118,181.08010149,0.00037892,120]
[392856204,1762066515022,187.78006525,0.00037892,120]
[392856205,1762066515469,194.72792766,0.00037892,120]
[392856206,1762066516101,201.93286099,0.00037892,120]
[392856207,1762066516741,209.40437684,0.00037892,120]
[392856208,1762066517381,217.15233878,0.00037892,120]
[392856209,1762066518051,225.18697532,0.00037892,120]
[392856210,1762066518691,233.51889341,0.00037892,120]
[392856211,1762066519303,242.15909246,0.00037892,120]
[392856212,1762066519922,251.11897888,0.00037892,120]
[392856213,1762066520567,260.4103811,0.00037892,120]
[392856214,1762066521212,270.0455652,0.00037892,120]
[392856215,1762066521858,280.03725112,0.00037892,120]
[392856216,1762066522504,290.39862941,0.00037892,120]
[392856217,1762066523128,290.39862941,0.00037892,120]
[392856225,1762066605065,999.0,0.00032876,120]
[392856226,1762066628390,372.60279587,0.00023659,2]
[392856237,1762066803028,1000.0,0.00037892,120]
[392856238,1762066817554,151.0,0.00037892,120]
[392856239,1762066818312,156.587,0.00037892,120]
[392856240,1762066819094,162.380719,0.00037892,120]
[392856241,1762066819718,168.3888056,0.00037892,120]
[392856242,1762066820338,174.61919141,0.00037892,120]
[392856243,1762066820926,181.08010149,0.00037892,120]
[392856244,1762066821541,187.78006525,0.00037892,120]
[392856245,1762066822173,194.72792766,0.00037892,120]
[392856246,1762066822795,201.93286099,0.00037892,120]
[392856247,1762066823434,209.40437684,0.00037892,120]
[392856248,1762066824555,217.15233878,0.00037892,120]
[392856249,1762066825187,225.18697532,0.00037892,120]
[392856250,1762066825780,225.18697532,0.00037892,120]
[392856252,1762066845902,999.0,0.00032876,120]
[392856256,1762066902644,163.777,0.00023612,4]
[392856260,1762066984601,284.096609,0.00023273,2]
[392856263,1762067101412,999.0,0.00032876,120]
[392856276,1762067255400,173.053466,0.00023061,2]
[392856283,1762067326219,999.0,0.00032876,120]
[392856496,1762067438223,-910.26943441,0.00023989,2]
[392856498,1762067438232,-1200.0,0.00023993,2]
[392856499,1762067438242,-1200.0,0.00023993,2]